[Event "*** Monthly 3|2 Blitz Masters"]
[Site "Chess.com"]
[Date "2014.11.25"]
[Round "4"]
[White "bsmail"]
[Black "esr44"]
[Result "1-0"]
[WhiteElo "2096"]
[BlackElo "2049"]
[TimeControl "180+2"]
[EndTime "11:44:33 PST"]
[Termination "bsmail won by resignation"]

1. e4 {[%clk 0:03:00]} 1... c6 {[%clk 0:02:59.1]} 2. d4 {[%clk 0:03:00.4]} 2...
d5 {[%clk 0:03:00.7]} 3. Nd2 {[%clk 0:03:01.6]} 3... dxe4 {[%clk 0:03:01.9]} 4.
Nxe4 {[%clk 0:03:03.5]} 4... Bf5 {[%clk 0:03:03.5]} 5. Ng3 {[%clk 0:03:04.5]}
5... Bg6 {[%clk 0:03:05.2]} 6. h4 {[%clk 0:03:06.2]} 6... h6 {[%clk 0:03:06.5]}
7. Nh3 {[%clk 0:03:07.9]} 7... e6 {[%clk 0:03:06.4]} 8. Nf4 {[%clk 0:03:09.1]}
8... Bh7 {[%clk 0:03:07.6]} 9. Bd3 {[%clk 0:03:10.8]} 9... Bxd3 {[%clk
0:03:07.4]} 10. Qxd3 {[%clk 0:03:11.5]} 10... Nf6 {[%clk 0:03:08.7]} 11. Bd2
{[%clk 0:03:12.8]} 11... Bd6 {[%clk 0:03:08.1]} 12. O-O-O {[%clk 0:03:14]} 12...
Qc7 {[%clk 0:03:07.9]} 13. Nfh5 {[%clk 0:03:15.3]} 13... Nxh5 {[%clk 0:03:06]}
14. Nxh5 {[%clk 0:03:15.8]} 14... g6 {[%clk 0:01:53.6]} 15. Ng7+ {[%clk
0:03:13.5]} 15... Ke7 {[%clk 0:01:42.5]} 16. h5 {[%clk 0:03:13.6]} 16... g5
{[%clk 0:01:39.1]} 17. Rhe1 {[%clk 0:03:00.7]} 17... Na6 {[%clk 0:01:35.6]} 18.
Nf5+ {[%clk 0:02:54.5]} 18... Kd7 {[%clk 0:01:36.8]} 19. Nxd6 {[%clk 0:02:51.9]}
19... Qxd6 {[%clk 0:01:38.7]} 20. c4 {[%clk 0:02:45.6]} 20... Rad8 {[%clk
0:01:31.1]} 21. Bc3 {[%clk 0:02:37.3]} 21... Kc8 {[%clk 0:01:29.6]} 22. d5
{[%clk 0:02:38.3]} 22... Rhe8 {[%clk 0:01:03.4]} 23. Qh7 {[%clk 0:02:38]} 23...
Qf4+ {[%clk 0:00:58]} 24. Kb1 {[%clk 0:02:38.6]} 24... exd5 {[%clk 0:00:46.3]}
25. Rxe8 {[%clk 0:02:35.5]} 25... Rxe8 {[%clk 0:00:46.8]} 26. cxd5 {[%clk
0:02:36.3]} 26... Qe4+ {[%clk 0:00:45.3]} 27. Qxe4 {[%clk 0:02:35.8]} 27... Rxe4
{[%clk 0:00:47.2]} 28. dxc6 {[%clk 0:02:34.8]} 28... bxc6 {[%clk 0:00:48.5]} 29.
f3 {[%clk 0:02:31.4]} 29... Re6 {[%clk 0:00:46.5]} 30. Re1 {[%clk 0:02:28.3]}
30... Nc5 {[%clk 0:00:41.7]} 31. Rxe6 {[%clk 0:02:23.9]} 31... Nxe6 {[%clk
0:00:42.3]} 32. Kc2 {[%clk 0:02:25.5]} 32... Kd7 {[%clk 0:00:39.7]} 33. g4
{[%clk 0:02:23.2]} 33... Ke7 {[%clk 0:00:34.9]} 34. Kd3 {[%clk 0:02:24.2]} 34...
f6 {[%clk 0:00:31.5]} 35. Ke4 {[%clk 0:02:24.5]} 35... Nf4 {[%clk 0:00:24.2]}
36. Kf5 {[%clk 0:02:23.2]} 36... Kf7 {[%clk 0:00:23.3]} 37. Bxf6 {[%clk
0:02:22.6]} 37... Nd5 {[%clk 0:00:23.1]} 38. Bd4 {[%clk 0:02:21.9]} 38... a6
{[%clk 0:00:21.9]} 39. Ke5 {[%clk 0:02:21.5]} 39... Nb4 {[%clk 0:00:16.6]} 40.
Kd6 {[%clk 0:02:16.5]} 40... Nxa2 {[%clk 0:00:13.3]} 41. Kxc6 {[%clk 0:02:17.8]}
41... Nb4+ {[%clk 0:00:14.9]} 42. Kb6 {[%clk 0:02:17.2]} 42... Nc2 {[%clk
0:00:15.8]} 43. Bf2 {[%clk 0:02:11.5]} 43... Nb4 {[%clk 0:00:15.2]} 44. Ka5
{[%clk 0:02:11.5]} 44... Nc6+ {[%clk 0:00:14.7]} 45. Kxa6 {[%clk 0:02:12]} 45...
Ne5 {[%clk 0:00:16.4]} 46. b4 {[%clk 0:02:10.7]} 46... Nxf3 {[%clk 0:00:15.1]}
47. b5 {[%clk 0:02:11.8]} 47... Ne5 {[%clk 0:00:16.5]} 48. b6 {[%clk 0:02:13.1]}
48... Nd7 {[%clk 0:00:15.8]} 49. Bd4 {[%clk 0:02:08.3]} 49... Ke6 {[%clk
0:00:04.6]} 50. Bg7 {[%clk 0:02:05.5]} 50... Nc5+ {[%clk 0:00:02.7]} 51. Ka7
{[%clk 0:02:04.4]} 51... Nd7 {[%clk 0:00:02.8]} 52. Bxh6 {[%clk 0:02:04]} 52...
Nxb6 {[%clk 0:00:04]} 53. Kxb6 {[%clk 0:02:03.9]} 53... Kf6 {[%clk 0:00:05.9]}
54. Kc5 {[%clk 0:02:02.5]} 1-0

[Event "*** Monthly 3|2 Blitz Masters"]
[Site "Chess.com"]
[Date "2014.11.25"]
[Round "4"]
[White "LePlusMortel"]
[Black "VovAn1991"]
[Result "0-1"]
[WhiteElo "2371"]
[BlackElo "2376"]
[TimeControl "180+2"]
[EndTime "11:44:39 PST"]
[Termination "VovAn1991 won by resignation"]

1. d4 {[%clk 0:02:59.3]} 1... Nf6 {[%clk 0:02:48.6]} 2. Nf3 {[%clk 0:02:58.2]}
2... g6 {[%clk 0:02:49.4]} 3. c4 {[%clk 0:02:58.9]} 3... Bg7 {[%clk 0:02:50.7]}
4. Nc3 {[%clk 0:03:00.5]} 4... O-O {[%clk 0:02:52]} 5. e4 {[%clk 0:03:01.2]}
5... d6 {[%clk 0:02:52.5]} 6. Be2 {[%clk 0:03:02.8]} 6... Nbd7 {[%clk
0:02:53.5]} 7. h4 {[%clk 0:03:03.2]} 7... e5 {[%clk 0:02:43.8]} 8. d5 {[%clk
0:03:04.1]} 8... Nc5 {[%clk 0:02:41.4]} 9. Nd2 {[%clk 0:03:04.9]} 9... h5 {[%clk
0:02:40.8]} 10. b4 {[%clk 0:03:05.3]} 10... Ncd7 {[%clk 0:02:41.3]} 11. Rb1
{[%clk 0:03:05.3]} 11... a5 {[%clk 0:02:42.9]} 12. a3 {[%clk 0:03:06.2]} 12...
axb4 {[%clk 0:02:44.1]} 13. axb4 {[%clk 0:03:08.1]} 13... Bh6 {[%clk 0:02:44.5]}
14. Nf3 {[%clk 0:02:58.1]} 14... Bxc1 {[%clk 0:02:44.6]} 15. Qxc1 {[%clk
0:03:00]} 15... Kg7 {[%clk 0:02:46.5]} 16. Ng5 {[%clk 0:02:58.7]} 16... c6
{[%clk 0:02:21.7]} 17. Qe3 {[%clk 0:02:51.9]} 17... Ra3 {[%clk 0:02:19.7]} 18.
O-O {[%clk 0:02:38.8]} 18... cxd5 {[%clk 0:02:19]} 19. cxd5 {[%clk 0:02:40.3]}
19... Nh7 {[%clk 0:02:06.2]} 20. Rfc1 {[%clk 0:02:28.1]} 20... Nxg5 {[%clk
0:02:04.7]} 21. hxg5 {[%clk 0:02:27.7]} 21... f5 {[%clk 0:01:55]} 22. gxf6+
{[%clk 0:02:25]} 22... Nxf6 {[%clk 0:01:54.9]} 23. Qg5 {[%clk 0:02:06.3]} 23...
Qb6 {[%clk 0:01:53.9]} 24. Bf3 {[%clk 0:01:50]} 24... Bg4 {[%clk 0:01:42.8]} 25.
Qe3 {[%clk 0:01:14.9]} 25... Qa6 {[%clk 0:01:33.9]} 26. b5 {[%clk 0:01:08.2]}
26... Qa5 {[%clk 0:01:34.4]} 27. b6 {[%clk 0:01:03.6]} 27... Rc8 {[%clk
0:01:27.9]} 28. Rb5 {[%clk 0:00:40.6]} 28... Qxb5 {[%clk 0:01:26.4]} 29. Nxb5
{[%clk 0:00:39.8]} 29... Rxe3 {[%clk 0:01:27]} 30. Nc7 {[%clk 0:00:30.4]} 30...
Rb3 {[%clk 0:01:02.4]} 31. Bxg4 {[%clk 0:00:29.8]} 31... Nxg4 {[%clk 0:01:04.3]}
32. f3 {[%clk 0:00:27.6]} 32... Rxb6 {[%clk 0:00:59.4]} 33. fxg4 {[%clk
0:00:26]} 33... Kh7 {[%clk 0:00:57.7]} 34. gxh5 {[%clk 0:00:16.2]} 34... gxh5
{[%clk 0:00:59.6]} 35. Kf2 {[%clk 0:00:15.4]} 35... Rb3 {[%clk 0:00:58.8]} 36.
Rc2 {[%clk 0:00:10.2]} 36... Kg6 {[%clk 0:00:57.7]} 37. Kg1 {[%clk 0:00:09.1]}
37... h4 {[%clk 0:00:51.6]} 38. Kh2 {[%clk 0:00:09.6]} 38... Kh5 {[%clk
0:00:52.3]} 39. Kg1 {[%clk 0:00:05.6]} 39... Rg3 {[%clk 0:00:52.6]} 40. Kh2
{[%clk 0:00:06.6]} 40... Kh6 {[%clk 0:00:50.9]} 41. Rf2 {[%clk 0:00:06]} 41...
Rxc7 {[%clk 0:00:50.3]} 42. Rf6+ {[%clk 0:00:07.5]} 42... Rg6 {[%clk 0:00:51.6]}
0-1

[Event "*** Monthly 3|2 Blitz Masters"]
[Site "Chess.com"]
[Date "2014.11.25"]
[Round "4"]
[White "Quinten94"]
[Black "Zhani-Z"]
[Result "1/2-1/2"]
[WhiteElo "2053"]
[BlackElo "1774"]
[TimeControl "180+2"]
[EndTime "11:44:49 PST"]
[Termination "Game drawn by agreement"]

1. e4 {[%clk 0:03:00]} 1... e5 {[%clk 0:02:57.2]} 2. Nf3 {[%clk 0:03:01.1]} 2...
Nc6 {[%clk 0:02:57.9]} 3. Bb5 {[%clk 0:03:02.7]} 3... a6 {[%clk 0:02:57.7]} 4.
Ba4 {[%clk 0:03:04.4]} 4... Nf6 {[%clk 0:02:55.9]} 5. O-O {[%clk 0:03:05]} 5...
b5 {[%clk 0:02:52.1]} 6. Bb3 {[%clk 0:03:05.9]} 6... Bb7 {[%clk 0:02:52.3]} 7.
Nc3 {[%clk 0:03:02.7]} 7... Be7 {[%clk 0:02:51.2]} 8. d3 {[%clk 0:02:57.4]} 8...
O-O {[%clk 0:02:49.9]} 9. a4 {[%clk 0:02:58.9]} 9... b4 {[%clk 0:02:47.7]} 10.
Nd5 {[%clk 0:03:00.1]} 10... Na5 {[%clk 0:02:48.5]} 11. Nxe7+ {[%clk 0:02:47.5]}
11... Qxe7 {[%clk 0:02:49.3]} 12. Ba2 {[%clk 0:02:49.2]} 12... d5 {[%clk
0:02:48.7]} 13. exd5 {[%clk 0:02:50.2]} 13... Qd6 {[%clk 0:02:47.9]} 14. Re1
{[%clk 0:02:48.3]} 14... Rfe8 {[%clk 0:02:46.7]} 15. Ng5 {[%clk 0:02:32.5]}
15... Bxd5 {[%clk 0:02:44.9]} 16. Bxd5 {[%clk 0:02:27.3]} 16... Qxd5 {[%clk
0:02:41.9]} 17. b3 {[%clk 0:02:23.2]} 17... h6 {[%clk 0:02:32.5]} 18. Ne4 {[%clk
0:02:22.9]} 18... Nd7 {[%clk 0:02:33.3]} 19. Qg4 {[%clk 0:02:16.2]} 19... Qe6
{[%clk 0:02:28.9]} 20. Qxe6 {[%clk 0:02:07.8]} 20... Rxe6 {[%clk 0:02:29.4]} 21.
Bd2 {[%clk 0:02:09.1]} 21... c5 {[%clk 0:02:28.9]} 22. Be3 {[%clk 0:02:09.6]}
22... Rc8 {[%clk 0:02:28.3]} 23. g4 {[%clk 0:01:59.6]} 23... Rg6 {[%clk
0:02:25.4]} 24. h3 {[%clk 0:01:58.1]} 24... f5 {[%clk 0:02:26.3]} 25. Ng3 {[%clk
0:01:42.8]} 25... fxg4 {[%clk 0:02:14.4]} 26. hxg4 {[%clk 0:01:38]} 26... Rxg4
{[%clk 0:02:14.9]} 27. Kg2 {[%clk 0:01:39.6]} 27... Rg6 {[%clk 0:02:08.2]} 28.
Rh1 {[%clk 0:01:38.6]} 28... Nc6 {[%clk 0:02:02.9]} 29. Kf1 {[%clk 0:01:26.1]}
29... Nd4 {[%clk 0:02:03.1]} 30. Rc1 {[%clk 0:01:26.9]} 30... Nf6 {[%clk
0:01:58.1]} 31. Bxd4 {[%clk 0:01:11.6]} 31... cxd4 {[%clk 0:01:57.8]} 32. Nf5
{[%clk 0:01:13.2]} 32... Nd5 {[%clk 0:01:52.8]} 33. Rg1 {[%clk 0:00:56.9]} 33...
Rxg1+ {[%clk 0:01:42.5]} 34. Kxg1 {[%clk 0:00:58.2]} 34... Kf8 {[%clk
0:01:30.2]} 35. Nd6 {[%clk 0:00:57.2]} 35... Rc6 {[%clk 0:01:28.6]} 36. Nc4
{[%clk 0:00:58.3]} 36... e4 {[%clk 0:00:49.5]} 37. dxe4 {[%clk 0:00:55.4]} 37...
Nc3 {[%clk 0:00:50.6]} 38. Re1 {[%clk 0:00:55.2]} 38... Nxa4 {[%clk 0:00:51.5]}
39. Ne5 {[%clk 0:00:37.7]} 39... Re6 {[%clk 0:00:52.1]} 40. Nf3 {[%clk
0:00:39.2]} 40... Nc3 {[%clk 0:00:50.9]} 41. Nxd4 {[%clk 0:00:39.6]} 41... Rxe4
{[%clk 0:00:50.2]} 42. Rxe4 {[%clk 0:00:39.3]} 42... Nxe4 {[%clk 0:00:51]} 43.
Nc6 {[%clk 0:00:41]} 43... Nc5 {[%clk 0:00:36.2]} 44. Nxb4 {[%clk 0:00:41.4]}
44... a5 {[%clk 0:00:34.3]} 45. Nc6 {[%clk 0:00:42.2]} 45... a4 {[%clk
0:00:35.1]} 46. bxa4 {[%clk 0:00:42.3]} 46... Nxa4 {[%clk 0:00:35.9]} 1/2-1/2

[Event "*** Monthly 3|2 Blitz Masters"]
[Site "Chess.com"]
[Date "2014.11.25"]
[Round "4"]
[White "GeorgMeier"]
[Black "GedoGluperd"]
[Result "1-0"]
[WhiteElo "2580"]
[BlackElo "2310"]
[TimeControl "180+2"]
[EndTime "11:44:50 PST"]
[Termination "GeorgMeier won by resignation"]

1. Nf3 {[%clk 0:03:00]} 1... g6 {[%clk 0:02:50.1]} 2. g3 {[%clk 0:02:59.6]} 2...
Bg7 {[%clk 0:02:51.4]} 3. d4 {[%clk 0:03:01.2]} 3... Nf6 {[%clk 0:02:52.6]} 4.
Bg2 {[%clk 0:03:02.7]} 4... O-O {[%clk 0:02:53.7]} 5. O-O {[%clk 0:03:04.4]}
5... d6 {[%clk 0:02:54.7]} 6. b3 {[%clk 0:03:05.9]} 6... c5 {[%clk 0:02:54.2]}
7. c4 {[%clk 0:03:06.6]} 7... Nc6 {[%clk 0:02:53.6]} 8. Bb2 {[%clk 0:03:07]}
8... cxd4 {[%clk 0:02:54.6]} 9. Nxd4 {[%clk 0:03:07.2]} 9... Bd7 {[%clk
0:02:55.4]} 10. Nc3 {[%clk 0:03:07.5]} 10... Qa5 {[%clk 0:02:48.6]} 11. e3
{[%clk 0:02:54.8]} 11... Rac8 {[%clk 0:02:46.6]} 12. Rc1 {[%clk 0:02:52]} 12...
Rfe8 {[%clk 0:02:45.1]} 13. Re1 {[%clk 0:02:52.4]} 13... Bg4 {[%clk 0:02:41.6]}
14. Qd2 {[%clk 0:02:44.9]} 14... Qh5 {[%clk 0:02:41.8]} 15. Nd5 {[%clk
0:02:45.4]} 15... Nxd5 {[%clk 0:02:39.5]} 16. cxd5 {[%clk 0:02:45.6]} 16... Ne5
{[%clk 0:02:40.6]} 17. h4 {[%clk 0:02:22.9]} 17... Bf6 {[%clk 0:02:14.4]} 18.
Rf1 {[%clk 0:02:14.7]} 18... g5 {[%clk 0:01:52.8]} 19. hxg5 {[%clk 0:02:12.3]}
19... Bg7 {[%clk 0:01:53.2]} 20. f4 {[%clk 0:02:03.8]} 20... Nd7 {[%clk
0:01:52.5]} 21. Rc2 {[%clk 0:01:39.2]} 21... Bh3 {[%clk 0:01:49.3]} 22. Rfc1
{[%clk 0:01:31.1]} 22... Rxc2 {[%clk 0:01:50.1]} 23. Rxc2 {[%clk 0:01:30.5]}
23... Nc5 {[%clk 0:01:51.1]} 24. Qe2 {[%clk 0:01:21.4]} 24... Bg4 {[%clk
0:01:49.3]} 25. Bf3 {[%clk 0:01:08.8]} 25... Bxf3 {[%clk 0:01:38.2]} 26. Qxf3
{[%clk 0:01:09.8]} 26... Qg6 {[%clk 0:01:39.4]} 27. Qe2 {[%clk 0:00:59.1]} 27...
Qe4 {[%clk 0:01:35.5]} 28. g4 {[%clk 0:00:46.4]} 28... Qxd5 {[%clk 0:01:34.2]}
29. Nf5 {[%clk 0:00:45.4]} 29... Bxb2 {[%clk 0:01:32.7]} 30. Rxb2 {[%clk
0:00:47.3]} 30... Qd3 {[%clk 0:01:22.2]} 31. Qxd3 {[%clk 0:00:44.3]} 31... Nxd3
{[%clk 0:01:23.3]} 32. Rc2 {[%clk 0:00:45.6]} 32... Nc5 {[%clk 0:01:24.5]} 33.
b4 {[%clk 0:00:45.2]} 33... Ne6 {[%clk 0:01:22.5]} 34. Kf2 {[%clk 0:00:43.9]}
34... Kf8 {[%clk 0:01:15.4]} 35. Kf3 {[%clk 0:00:44.3]} 35... a5 {[%clk
0:01:11.4]} 36. bxa5 {[%clk 0:00:44.5]} 36... Ra8 {[%clk 0:01:12.4]} 37. Rh2
{[%clk 0:00:46.1]} 37... Ke8 {[%clk 0:01:09.5]} 38. Rxh7 {[%clk 0:00:44.9]}
38... Rxa5 {[%clk 0:01:10.6]} 39. g6 {[%clk 0:00:45.5]} 39... fxg6 {[%clk
0:01:08.9]} 40. Rxe7+ {[%clk 0:00:45.7]} 40... Kf8 {[%clk 0:01:06.6]} 41. Rxe6
{[%clk 0:00:46.3]} 41... gxf5 {[%clk 0:01:08.1]} 42. Rf6+ {[%clk 0:00:46.5]}
42... Ke7 {[%clk 0:01:09.4]} 43. Rxf5 {[%clk 0:00:47.9]} 43... Rxa2 {[%clk
0:01:10.6]} 44. Rb5 {[%clk 0:00:48.7]} 44... Ra7 {[%clk 0:01:08.1]} 45. g5
{[%clk 0:00:49.7]} 45... Kd7 {[%clk 0:01:09.6]} 46. g6 {[%clk 0:00:50.2]} 46...
Kc6 {[%clk 0:01:11.3]} 47. Rg5 {[%clk 0:00:49.2]} 47... Ra8 {[%clk 0:01:09.4]}
48. g7 {[%clk 0:00:42.6]} 48... Rg8 {[%clk 0:01:10.1]} 49. Kg4 {[%clk
0:00:43.8]} 49... b5 {[%clk 0:01:11.3]} 50. Kh5 {[%clk 0:00:44.2]} 50... b4
{[%clk 0:01:12.7]} 51. Kg6 {[%clk 0:00:44.7]} 51... b3 {[%clk 0:01:14.2]} 52.
Rg2 {[%clk 0:00:45.3]} 52... Kd5 {[%clk 0:01:15.6]} 53. Kf7 {[%clk 0:00:45.5]}
53... Rb8 {[%clk 0:01:09.9]} 54. g8=Q {[%clk 0:00:46.1]} 54... Rxg8 {[%clk
0:01:10.3]} 55. Kxg8 {[%clk 0:00:48]} 55... Ke4 {[%clk 0:01:10.9]} 56. Rb2
{[%clk 0:00:49.5]} 56... Kxe3 {[%clk 0:01:11.6]} 57. f5 {[%clk 0:00:50.4]} 57...
d5 {[%clk 0:01:12.8]} 1-0

[Event "*** Monthly 3|2 Blitz Masters"]
[Site "Chess.com"]
[Date "2014.11.25"]
[Round "4"]
[White "liczner"]
[Black "VSERGUEI"]
[Result "1-0"]
[WhiteElo "2420"]
[BlackElo "2301"]
[TimeControl "180+2"]
[EndTime "11:45:32 PST"]
[Termination "liczner won on time"]

1. e4 {[%clk 0:02:59.1]} 1... e6 {[%clk 0:02:59.1]} 2. d4 {[%clk 0:02:59.7]}
2... d5 {[%clk 0:03:00.6]} 3. Nd2 {[%clk 0:02:58.7]} 3... Nf6 {[%clk 0:03:01]}
4. e5 {[%clk 0:03:00]} 4... Nfd7 {[%clk 0:03:01.7]} 5. Bd3 {[%clk 0:03:01.5]}
5... c5 {[%clk 0:03:03.2]} 6. c3 {[%clk 0:03:02.8]} 6... Nc6 {[%clk 0:03:04.6]}
7. Ne2 {[%clk 0:03:03.5]} 7... cxd4 {[%clk 0:03:06.1]} 8. cxd4 {[%clk
0:03:05.4]} 8... f6 {[%clk 0:03:07]} 9. Nf4 {[%clk 0:03:04]} 9... Nxd4 {[%clk
0:03:03.1]} 10. Qh5+ {[%clk 0:03:03.8]} 10... Ke7 {[%clk 0:03:03.9]} 11. exf6+
{[%clk 0:03:03.6]} 11... Nxf6 {[%clk 0:03:02.9]} 12. Ng6+ {[%clk 0:03:04]} 12...
hxg6 {[%clk 0:03:00.4]} 13. Qxh8 {[%clk 0:02:58.9]} 13... Kf7 {[%clk 0:03:01]}
14. Qh4 {[%clk 0:02:57.9]} 14... e5 {[%clk 0:02:58.2]} 15. Nf3 {[%clk
0:02:56.5]} 15... Nxf3+ {[%clk 0:02:29.2]} 16. gxf3 {[%clk 0:02:58.4]} 16... Bf5
{[%clk 0:02:29.2]} 17. Bxf5 {[%clk 0:02:59.1]} 17... gxf5 {[%clk 0:02:29.5]} 18.
Bg5 {[%clk 0:02:59.9]} 18... d4 {[%clk 0:02:22.7]} 19. O-O {[%clk 0:02:12.4]}
19... Qd5 {[%clk 0:02:22.2]} 20. Bxf6 {[%clk 0:01:54.6]} 20... gxf6 {[%clk
0:02:22]} 21. Qh7+ {[%clk 0:01:53.4]} 21... Ke6 {[%clk 0:02:20.5]} 22. Qg8+
{[%clk 0:00:54.3]} 22... Kd6 {[%clk 0:02:20.5]} 23. Qg6 {[%clk 0:00:53.8]} 23...
Qe6 {[%clk 0:02:14.1]} 24. Kh1 {[%clk 0:00:43.2]} 24... Be7 {[%clk 0:02:12.3]}
25. Rg1 {[%clk 0:00:36.9]} 25... Rh8 {[%clk 0:02:10.1]} 26. Rac1 {[%clk
0:00:34.2]} 26... f4 {[%clk 0:01:52.4]} 27. Qc2 {[%clk 0:00:18.4]} 27... Qd5
{[%clk 0:01:37.4]} 28. Rg7 {[%clk 0:00:10]} 28... Qxf3+ {[%clk 0:01:21]} 29. Kg1
{[%clk 0:00:10]} 29... Qc6 {[%clk 0:01:18.3]} 30. Qd2 {[%clk 0:00:08.9]} 30...
Qb6 {[%clk 0:01:12]} 31. Qd3 {[%clk 0:00:03.1]} 31... Qa6 {[%clk 0:00:51.4]} 32.
Qg6 {[%clk 0:00:02.9]} 32... Qa5 {[%clk 0:00:11.6]} 33. Qf7 {[%clk 0:00:03.5]}
33... Qd8 {[%clk 0:00:10.2]} 34. Qc4 {[%clk 0:00:04.6]} 34... Qd7 {[%clk
0:00:06.4]} 35. b4 {[%clk 0:00:04.6]} 35... b6 {[%clk 0:00:05.5]} 36. b5 {[%clk
0:00:04.8]} 36... Rd8 {[%clk 0:00:02.1]} 37. Qf7 {[%clk 0:00:05.9]} 1-0

[Event "*** Monthly 3|2 Blitz Masters"]
[Site "Chess.com"]
[Date "2014.11.25"]
[Round "4"]
[White "AlmirDzhumaev"]
[Black "ameet100"]
[Result "1-0"]
[WhiteElo "2277"]
[BlackElo "2420"]
[TimeControl "180+2"]
[EndTime "11:45:47 PST"]
[Termination "AlmirDzhumaev won by resignation"]

1. e4 {[%clk 0:02:59.2]} 1... g6 {[%clk 0:02:58.1]} 2. Nc3 {[%clk 0:02:59.8]}
2... d6 {[%clk 0:02:59.6]} 3. g3 {[%clk 0:03:00.4]} 3... Bg7 {[%clk 0:03:01]} 4.
Bg2 {[%clk 0:03:01.4]} 4... Nf6 {[%clk 0:03:02.5]} 5. d3 {[%clk 0:03:02.4]} 5...
O-O {[%clk 0:03:04]} 6. Be3 {[%clk 0:03:02.8]} 6... c5 {[%clk 0:03:04.8]} 7. h3
{[%clk 0:03:04]} 7... Nc6 {[%clk 0:03:04.5]} 8. Qd2 {[%clk 0:03:05]} 8... Nd4
{[%clk 0:03:05.2]} 9. Nd1 {[%clk 0:03:05.6]} 9... Rb8 {[%clk 0:03:02.4]} 10. f4
{[%clk 0:03:03.3]} 10... e5 {[%clk 0:02:59]} 11. c3 {[%clk 0:03:04]} 11... Nc6
{[%clk 0:02:47.8]} 12. Ne2 {[%clk 0:03:02.3]} 12... exf4 {[%clk 0:02:36.6]} 13.
Nxf4 {[%clk 0:03:00.1]} 13... Re8 {[%clk 0:02:34.8]} 14. O-O {[%clk 0:03:00.2]}
14... c4 {[%clk 0:02:35.5]} 15. Nf2 {[%clk 0:02:52.7]} 15... cxd3 {[%clk
0:02:36.5]} 16. Qxd3 {[%clk 0:02:53.4]} 16... Ne5 {[%clk 0:02:31.6]} 17. Qc2
{[%clk 0:02:53.4]} 17... b6 {[%clk 0:02:30]} 18. Rad1 {[%clk 0:02:46]} 18... Bb7
{[%clk 0:02:30.6]} 19. Nd5 {[%clk 0:02:46.3]} 19... Nxd5 {[%clk 0:02:30.1]} 20.
exd5 {[%clk 0:02:47.5]} 20... Nc4 {[%clk 0:02:25.3]} 21. Bf4 {[%clk 0:02:41.7]}
21... Ne3 {[%clk 0:02:19.6]} 22. Bxe3 {[%clk 0:02:42.6]} 22... Rxe3 {[%clk
0:02:21.4]} 23. Ng4 {[%clk 0:02:43.8]} 23... Re8 {[%clk 0:02:08.4]} 24. Qf2
{[%clk 0:02:37.3]} 24... f5 {[%clk 0:02:08.4]} 25. Nh2 {[%clk 0:02:31.5]} 25...
Qg5 {[%clk 0:01:23.3]} 26. Nf3 {[%clk 0:02:23.9]} 26... Qe3 {[%clk 0:01:24.2]}
27. Rfe1 {[%clk 0:02:24.3]} 27... Qxf2+ {[%clk 0:01:23.1]} 28. Kxf2 {[%clk
0:02:25.5]} 28... Rxe1 {[%clk 0:01:20.6]} 29. Kxe1 {[%clk 0:02:13.3]} 29... Re8+
{[%clk 0:01:21.1]} 30. Kf2 {[%clk 0:02:14.4]} 30... h6 {[%clk 0:01:18]} 31. Nd4
{[%clk 0:02:11.1]} 31... Bxd4+ {[%clk 0:01:17.7]} 32. Rxd4 {[%clk 0:02:11.8]}
32... Re5 {[%clk 0:01:05.3]} 33. c4 {[%clk 0:02:09.4]} 33... Kf7 {[%clk
0:01:03.4]} 34. b4 {[%clk 0:02:07.8]} 34... Kf6 {[%clk 0:01:03.6]} 35. a3 {[%clk
0:02:05.1]} 35... Re8 {[%clk 0:00:58.6]} 36. Bf1 {[%clk 0:02:03.4]} 36... g5
{[%clk 0:00:57.1]} 37. Bg2 {[%clk 0:02:01.8]} 37... Ba6 {[%clk 0:00:54.8]} 38.
Bf1 {[%clk 0:01:59]} 38... Rc8 {[%clk 0:00:55.9]} 39. Ke3 {[%clk 0:01:58.9]}
39... Ke5 {[%clk 0:00:56.6]} 40. h4 {[%clk 0:01:55.5]} 40... Rc7 {[%clk
0:00:53.6]} 41. b5 {[%clk 0:01:48.7]} 41... Bc8 {[%clk 0:00:53.4]} 42. Rd2
{[%clk 0:01:49.3]} 42... Kf6 {[%clk 0:00:45.6]} 43. Kd4 {[%clk 0:01:49.2]} 43...
Re7 {[%clk 0:00:43.2]} 44. Bd3 {[%clk 0:01:47.9]} 44... Re1 {[%clk 0:00:40.2]}
45. hxg5+ {[%clk 0:01:44]} 45... Kxg5 {[%clk 0:00:41.2]} 46. Re2 {[%clk
0:01:38.3]} 46... Rxe2 {[%clk 0:00:39.7]} 47. Bxe2 {[%clk 0:01:39.4]} 47... f4
{[%clk 0:00:39.9]} 48. gxf4+ {[%clk 0:01:37.8]} 48... Kxf4 {[%clk 0:00:41.6]}
49. a4 {[%clk 0:01:33.7]} 49... Bg4 {[%clk 0:00:37.7]} 50. Bxg4 {[%clk
0:01:07.2]} 50... Kxg4 {[%clk 0:00:38.9]} 51. c5 {[%clk 0:01:02.4]} 51... bxc5+
{[%clk 0:00:37.9]} 52. Ke3 {[%clk 0:00:58.6]} 52... h5 {[%clk 0:00:20.1]} 53. a5
{[%clk 0:00:59.4]} 53... h4 {[%clk 0:00:21.5]} 54. b6 {[%clk 0:01:00.4]} 54...
axb6 {[%clk 0:00:10.6]} 55. axb6 {[%clk 0:01:00.6]} 55... h3 {[%clk 0:00:11.8]}
56. Kf2 {[%clk 0:00:56.7]} 56... c4 {[%clk 0:00:10.8]} 57. b7 {[%clk 0:00:57.6]}
57... c3 {[%clk 0:00:12.5]} 58. b8=Q {[%clk 0:00:59]} 1-0